fUSD/lending_fUSD_20240406
["ID","MTS","AMOUNT","RATE_DAILY","PERIOD"]
[321693106,1712394639032,-513.09377668,0.00023476,2]
[321693107,1712394639041,-209.99236181,0.00023476,2]
[321693108,1712394639051,-500.0,0.00023477,2]
[321693109,1712394639061,-551.85,0.00023477,2]
[321693110,1712394639070,-500.0,0.00023477,2]
[321693111,1712394639079,-500.0,0.00023477,2]
[321693112,1712394639088,-500.0,0.00023477,2]
[321693113,1712394639098,-500.0,0.00023477,2]
[321693114,1712394639107,-252.22732776,0.00023477,2]
[321693115,1712394640111,-247.77267224,0.00023477,2]
[321693116,1712394640121,-375.48732771,0.00023477,2]
[321693147,1712394642954,-124.51267229,0.00023477,2]
[321693148,1712394642963,-500.0,0.00023477,2]
[321693149,1712394642973,-563.4,0.00023477,2]
[321693150,1712394642982,-500.0,0.00023477,2]
[321693151,1712394642991,-500.0,0.00023477,2]
[321693152,1712394643001,-500.0,0.00023477,2]
[321693153,1712394643011,-500.0,0.00023477,2]
[321693154,1712394643020,-500.0,0.00023477,2]
[321693155,1712394643030,-500.0,0.00023477,2]
[321693156,1712394643040,-520.15,0.00023477,2]
[321693157,1712394643054,-906.23,0.00023477,2]
[321693158,1712394643063,-500.0,0.00023477,2]
[321693159,1712394643072,-500.0,0.00023477,2]
[321693160,1712394643081,-500.0,0.00023477,2]
[321693161,1712394643090,-500.0,0.00023477,2]
[321693162,1712394643099,-500.0,0.00023477,2]
[321693163,1712394643108,-500.0,0.00023477,2]
[321693164,1712394643117,-500.0,0.00023477,2]
[321693165,1712394643127,-500.0,0.00023477,2]
[321693166,1712394643137,-1050.71,0.00023477,2]
[321693167,1712394643146,-428.073519,0.00023477,2]
[321693168,1712394643155,-14058.3378,0.00023478,2]
[321693169,1712394643164,-245000.0,0.00023478,2]
[321693170,1712394643173,-469.30949527,0.00023495,2]
[321693171,1712394643184,-1226.0,0.000235,2]
[321693172,1712394643195,-767.69206172,0.00023562,2]
[321693173,1712394643205,-426.25801578,0.00023564,2]
[321693174,1712394643215,-291.83690532,0.00023576,2]
[321693175,1712394643224,-267.83152557,0.00023576,2]
[321693176,1712394643234,-2590.39998025,0.00023576,2]
[321693177,1712394643243,-487.97336944,0.00023576,2]
[321693178,1712394643252,-496.48242176,0.00023576,2]
[321693179,1712394643261,-155.6620029,0.00023576,2]
[321693180,1712394643271,-444.16283391,0.00023576,2]
[321693181,1712394643280,-156.56249745,0.00023576,2]
[321693182,1712394643289,-156.29477005,0.00023576,2]
[321693183,1712394643298,-221.97188059,0.00023576,2]
[321693184,1712394643308,-155.66355564,0.00023576,2]
[321693185,1712394643318,-155.26719256,0.00023576,2]
[321693186,1712394643327,-156.91334829,0.00023576,2]
[321693187,1712394643337,-155.65621514,0.00023576,2]
[321693188,1712394643347,-3824.67713528,0.00023576,2]
[321693189,1712394643356,-1215.10857904,0.00023576,2]
[321693190,1712394643366,-155.9844329,0.00023576,2]
[321693191,1712394643375,-250.42974741,0.00023576,2]
[321693192,1712394643384,-8462.62148318,0.00023576,2]
[321693193,1712394643393,-190.67421197,0.00023576,2]
[321693194,1712394643402,-262.02434578,0.00023576,2]
[321693195,1712394643411,-155.8295946,0.00023576,2]
[321693196,1712394643421,-214.13590733,0.00023576,2]
[321693197,1712394643431,-158.18091608,0.00023576,2]
[321693198,1712394643441,-599.20952527,0.00023577,2]
[321693199,1712394643451,-500.0,0.00023577,2]
[321693200,1712394643462,-500.0,0.00023577,2]
[321693201,1712394643471,-422.53,0.00023577,2]
[321693202,1712394643481,-168.36,0.00023577,2]
[321693203,1712394643491,-500.0,0.00023577,2]
[321693204,1712394643501,-318.08,0.00023577,2]
[321693205,1712394643511,-500.0,0.00023577,2]
[321693206,1712394643521,-500.0,0.00023577,2]
[321693207,1712394643531,-453.52,0.00023577,2]
[321693208,1712394643540,-500.0,0.00023577,2]
[321693209,1712394643551,-500.0,0.00023577,2]
[321693210,1712394643560,-298.18,0.00023577,2]
[321693211,1712394643570,-500.0,0.00023577,2]
[321693212,1712394643579,-172.85,0.00023577,2]
[321693213,1712394643588,-500.0,0.00023577,2]
[321693214,1712394643598,-500.0,0.00023577,2]
[321693215,1712394643607,-500.0,0.00023577,2]
[321693216,1712394643616,-210.26,0.00023577,2]
[321693217,1712394643627,-500.0,0.00023577,2]
[321693218,1712394643636,-283.48,0.00023577,2]
[321693219,1712394643646,-304.422638,0.00023577,2]
[321693220,1712394643655,-304.422638,0.00023577,2]
[321693221,1712394643666,-500.0,0.00023577,2]
[321693222,1712394643676,-605.27,0.00023577,2]
[321693223,1712394643685,-500.0,0.00023577,2]
[321693224,1712394643695,-300.0,0.00023577,2]
[321693225,1712394643705,-500.0,0.00023577,2]
[321693226,1712394643715,-215.95338795,0.00023577,2]
[321693227,1712394643724,-2000.0,0.00023578,2]
[321693228,1712394643734,-200.0,0.00023578,2]
[321693229,1712394643743,-200.0,0.00023578,2]
[321693230,1712394643753,-2000.0,0.00023578,2]
[321693231,1712394643763,-200.0,0.00023578,2]
[321693232,1712394643773,-835.81935,0.00023578,2]
[321693233,1712394643784,-500.0,0.00023595,2]
[321693234,1712394643795,-500.0,0.00023595,2]
[321693235,1712394643804,-500.0,0.00023595,2]
[321693236,1712394643813,-500.0,0.00023595,2]
[321693237,1712394643823,-500.0,0.00023595,2]
[321693238,1712394643835,-472.1610516,0.00023595,2]
[321693239,1712394643844,-500.0,0.00023595,2]
[321693240,1712394643853,-500.0,0.00023595,2]
[321693241,1712394643862,-563.4,0.00023595,2]
[321693242,1712394643872,-500.0,0.00023595,2]
[321693243,1712394643881,-500.0,0.00023595,2]
[321693244,1712394643890,-500.0,0.00023595,2]
[321693245,1712394643899,-500.0,0.00023595,2]
[321693246,1712394643908,-500.0,0.00023595,2]
[321693247,1712394643917,-500.0,0.00023595,2]
[321693248,1712394643926,-520.15,0.00023595,2]
[321693249,1712394643935,-906.23,0.00023595,2]
[321693250,1712394643944,-451.28,0.00023595,2]
[321693251,1712394643953,-151.0,0.00023595,7]
[321693252,1712394643962,-151.0,0.00023595,7]
[321693253,1712394643972,-500.0,0.00023595,2]
[321693254,1712394643981,-500.0,0.00023595,2]
[321693255,1712394643990,-500.0,0.00023595,2]
[321693256,1712394643999,-500.0,0.00023595,2]
[321693257,1712394644007,-500.0,0.00023595,2]
[321693258,1712394644016,-500.0,0.00023595,2]
[321693259,1712394644026,-1050.71,0.00023595,2]
[321693260,1712394644035,-122202.0978629,0.00023596,2]
[321693261,1712394644048,-304.422638,0.00023596,2]
[321693262,1712394644058,-304.422638,0.00023596,2]
[321693263,1712394644068,-151.0,0.00023596,7]
[321693264,1712394644077,-151.0,0.00023596,7]
[321693265,1712394644087,-550014.03049989,0.000236,2]
[321693266,1712394644108,-11951.35176508,0.000236,2]
[321693267,1712394644120,-3923.28958889,0.000236,2]
[321693282,1712394645800,-261.86179938,0.00023476,2]
[321693283,1712394645809,-500.0,0.00023477,2]
[321693284,1712394645819,-9737.19946634,0.00023477,2]
[321693285,1712394645829,-500.0,0.00023595,2]
[321693286,1712394645839,-25336.41983417,0.000236,2]
[321693287,1712394645848,-481.0,0.000236,6]
[321693288,1712394645858,-1000.0,0.000236,2]
[321693289,1712394645867,-393.0,0.000236,2]
[321693290,1712394645876,-1524.921638,0.000236,2]
[321693291,1712394645885,-500.0,0.00023659,2]
[321693292,1712394645895,-500.0,0.00023659,2]
[321693293,1712394645904,-231.0366824,0.00023659,2]
[321693294,1712394645913,-605.27,0.00023659,2]
[321693295,1712394645922,-500.0,0.00023659,2]
[321693296,1712394645932,-500.0,0.00023659,2]
[321693297,1712394645941,-3626.0420105,0.0002366,2]
[321693298,1712394645950,-12319.3985496,0.0002366,2]
[321693299,1712394645961,-150.01,0.00023661,2]
[321693300,1712394645970,-5822.10587372,0.00023661,2]
[321693301,1712394645979,-500.0,0.00023661,2]
[321693302,1712394645988,-500.0,0.00023661,2]
[321693303,1712394645997,-151.71,0.00023661,2]
[321693304,1712394646006,-273.19,0.00023661,2]
[321693305,1712394646016,-199.57,0.00023661,2]
[321693306,1712394646025,-197.43631802,0.00023661,2]
[321693307,1712394646034,-232.79,0.00023661,2]
[321693308,1712394646045,-498.87,0.00023661,2]
[321693309,1712394646056,-500.0,0.00023661,2]
[321693310,1712394646065,-18446.25465864,0.00023678,2]
[321693311,1712394646074,-304.422638,0.00023678,2]
[321693312,1712394646083,-304.422638,0.00023678,2]
[321693313,1712394646093,-151.0,0.00023678,7]
[321693314,1712394646102,-151.0,0.00023678,7]
[321693315,1712394646112,-469.30949522,0.00023696,2]
[321693316,1712394646121,-1014.0,0.000237,2]
[321693317,1712394646131,-1000.0,0.000237,2]
[321693319,1712394646141,-499.99,0.000237,2]
[321693320,1712394646151,-767.69206172,0.00023729,2]
[321693321,1712394646160,-190.0,0.00023761,2]
[321693322,1712394646171,-7500.0,0.000238,2]
[321693323,1712394646180,-252.1100752,0.000238,2]
[321693324,1712394646189,-490.0,0.000238,2]
[321693326,1712394646199,-300.32133362,0.000238,2]
[321693327,1712394646209,-1396.8274687,0.000238,2]
[321693328,1712394646219,-154.53413923,0.00023811,2]
[321693329,1712394646228,-200.0,0.00023814,2]
[321693330,1712394646237,-200.0,0.00023814,2]
[321693331,1712394646246,-200.0,0.00023814,2]
[321693333,1712394646255,-937.0,0.00023854,2]
[321693335,1712394646264,-154.53413923,0.00023889,2]
[321693336,1712394646274,-155.46952768,0.00023889,2]
[321693337,1712394646283,-469.30949522,0.00023896,2]
[321693338,1712394646291,-767.69206172,0.00023897,2]
[321693339,1712394646300,-500.0,0.00023899,2]
[321693340,1712394646310,-500.0,0.00023899,2]
[321693341,1712394646319,-500.0,0.00023899,2]
[321693342,1712394646328,-500.0,0.00023899,2]
[321693343,1712394646337,-500.0,0.00023899,2]
[321693344,1712394646346,-500.0,0.00023899,2]
[321693345,1712394646356,-500.0,0.00023899,2]
[321693346,1712394646365,-500.0,0.00023899,2]
[321693347,1712394646374,-500.0,0.00023899,2]
[321693348,1712394646383,-500.0,0.00023899,2]
[321693349,1712394646392,-500.0,0.00023899,2]
[321693350,1712394646401,-500.0,0.00023899,2]
[321693351,1712394646410,-500.0,0.00023899,2]
[321693352,1712394646420,-500.0,0.00023899,2]
[321693353,1712394646430,-500.0,0.00023899,2]
[321693354,1712394646439,-500.0,0.00023899,2]
[321693355,1712394646448,-500.0,0.00023899,2]
[321693356,1712394646458,-500.0,0.00023899,2]
[321693357,1712394646467,-500.0,0.00023899,2]
[321693358,1712394646477,-500.0,0.00023899,2]
[321693359,1712394646486,-500.0,0.00023899,2]
[321693360,1712394646497,-500.0,0.00023899,2]
[321693361,1712394646506,-500.0,0.00023899,2]
[321693362,1712394646515,-500.0,0.00023899,2]
[321693363,1712394646524,-222.46347458,0.00023899,2]
[321693364,1712394646533,-372.79,0.00023899,2]
[321693365,1712394646542,-500.0,0.00023899,2]
[321693366,1712394646551,-500.0,0.00023899,2]
[321693367,1712394646560,-500.0,0.00023899,2]
[321693368,1712394646569,-500.0,0.00023899,2]
[321693369,1712394646578,-500.0,0.00023899,2]
[321693370,1712394646588,-500.0,0.00023899,2]
[321693371,1712394646597,-500.0,0.00023899,2]
[321693372,1712394646607,-500.0,0.00023899,2]
[321693373,1712394646616,-500.0,0.00023899,2]
[321693374,1712394646625,-500.0,0.00023899,2]
[321693375,1712394646634,-500.0,0.00023899,2]
[321693376,1712394646644,-500.0,0.00023899,2]
[321693377,1712394646654,-500.0,0.00023899,2]
[321693378,1712394646663,-500.0,0.00023899,2]
[321693379,1712394646672,-500.0,0.00023899,2]
[321693380,1712394646681,-500.0,0.00023899,2]
[321693381,1712394646690,-500.0,0.00023899,2]
[321693382,1712394646700,-500.0,0.00023899,2]
[321693383,1712394646710,-563.4,0.00023899,2]
[321693384,1712394646891,-563.4,0.00023899,2]
[321693385,1712394646900,-563.4,0.00023899,2]
[321693386,1712394646909,-563.4,0.00023899,2]
[321693387,1712394646918,-563.4,0.00023899,2]
[321693388,1712394646928,-563.4,0.00023899,2]
[321693389,1712394646937,-563.4,0.00023899,2]
[321693390,1712394646947,-563.4,0.00023899,2]
[321693391,1712394646958,-563.4,0.00023899,2]
[321693392,1712394646967,-500.0,0.00023899,2]
[321693393,1712394646976,-500.0,0.00023899,2]
[321693394,1712394646984,-500.0,0.00023899,2]
[321693395,1712394646993,-500.0,0.00023899,2]
[321693396,1712394647002,-500.0,0.00023899,2]
[321693397,1712394647011,-500.0,0.00023899,2]
[321693398,1712394647020,-500.0,0.00023899,2]
[321693399,1712394647030,-500.0,0.00023899,2]
[321693400,1712394647040,-500.0,0.00023899,2]
[321693401,1712394647050,-500.0,0.00023899,2]
[321693402,1712394647059,-375.582036,0.00023899,2]
[321693403,1712394647068,-500.0,0.00023899,2]
[321693404,1712394647077,-500.0,0.00023899,2]
[321693405,1712394647087,-500.0,0.00023899,2]
[321693406,1712394647096,-500.0,0.00023899,2]
[321693407,1712394647106,-500.0,0.00023899,2]
[321693408,1712394647115,-500.0,0.00023899,2]
[321693409,1712394647125,-500.0,0.00023899,2]
[321693410,1712394647135,-500.0,0.00023899,2]
[321693411,1712394647144,-500.0,0.00023899,2]
[321693412,1712394647153,-500.0,0.00023899,2]
[321693413,1712394647162,-444.46288321,0.00023899,2]
[321693414,1712394647171,-500.0,0.00023899,2]
[321693415,1712394647180,-500.0,0.00023899,2]
[321693416,1712394647189,-500.0,0.00023899,2]
[321693417,1712394647198,-500.0,0.00023899,2]
[321693418,1712394647208,-500.0,0.00023899,2]
[321693419,1712394647217,-500.0,0.00023899,2]
[321693420,1712394647226,-500.0,0.00023899,2]
[321693421,1712394647235,-500.0,0.00023899,2]
[321693422,1712394647244,-500.0,0.00023899,2]
[321693423,1712394647253,-500.0,0.00023899,2]
[321693424,1712394647262,-583.82,0.00023899,2]
[321693425,1712394647271,-500.0,0.00023899,2]
[321693426,1712394647280,-500.0,0.00023899,2]
[321693427,1712394647289,-500.0,0.00023899,2]
[321693428,1712394647299,-500.0,0.00023899,2]
[321693429,1712394647308,-500.0,0.00023899,2]
[321693430,1712394647317,-500.0,0.00023899,2]
[321693431,1712394647326,-500.0,0.00023899,2]
[321693432,1712394647335,-500.0,0.00023899,2]
[321693433,1712394647344,-520.15,0.00023899,2]
[321693434,1712394647353,-500.0,0.00023899,2]
[321693435,1712394647363,-520.15,0.00023899,2]
[321693436,1712394647372,-520.15,0.00023899,2]
[321693437,1712394647381,-520.15,0.00023899,2]
[321693438,1712394647390,-520.15,0.00023899,2]
[321693439,1712394647399,-520.15,0.00023899,2]
[321693440,1712394647408,-520.15,0.00023899,2]
[321693441,1712394647417,-520.15,0.00023899,2]
[321693442,1712394647426,-520.15,0.00023899,2]
[321693443,1712394647435,-906.23,0.00023899,2]
[321693444,1712394647444,-906.23,0.00023899,2]
[321693445,1712394647453,-906.23,0.00023899,2]
[321693446,1712394647463,-906.23,0.00023899,2]
[321693447,1712394647472,-906.23,0.00023899,2]
[321693448,1712394647481,-906.23,0.00023899,2]
[321693449,1712394647491,-906.23,0.00023899,2]
[321693450,1712394647500,-906.23,0.00023899,2]
[321693451,1712394647509,-906.23,0.00023899,2]
[321693452,1712394647518,-151.0,0.00023899,7]
[321693453,1712394647527,-151.0,0.00023899,7]
[321693454,1712394647536,-151.0,0.00023899,7]
[321693455,1712394647547,-151.0,0.00023899,7]
[321693456,1712394647557,-500.0,0.00023899,2]
[321693457,1712394647566,-215.94070141,0.00023899,2]
[321693458,1712394647575,-500.0,0.00023899,2]
[321693459,1712394647584,-500.0,0.00023899,2]
[321693460,1712394647593,-500.0,0.00023899,2]
[321693461,1712394647602,-500.0,0.00023899,2]
[321693462,1712394647611,-500.0,0.00023899,2]
[321693463,1712394647620,-500.0,0.00023899,2]
[321693464,1712394647629,-500.0,0.00023899,2]
[321693465,1712394647638,-500.0,0.00023899,2]
[321693466,1712394647647,-500.0,0.00023899,2]
[321693467,1712394647656,-500.0,0.00023899,2]
[321693468,1712394647666,-500.0,0.00023899,2]
[321693469,1712394647675,-500.0,0.00023899,2]
[321693470,1712394647684,-500.0,0.00023899,2]
[321693471,1712394647693,-500.0,0.00023899,2]
[321693472,1712394647702,-533.65768543,0.00023899,2]
[321693473,1712394647713,-500.0,0.00023899,2]
[321693474,1712394647722,-500.0,0.00023899,2]
[321693475,1712394647731,-500.0,0.00023899,2]
[321693476,1712394647740,-500.0,0.00023899,2]
[321693477,1712394647749,-500.0,0.00023899,2]
[321693478,1712394647758,-500.0,0.00023899,2]
[321693479,1712394647767,-500.0,0.00023899,2]
[321693480,1712394647777,-500.0,0.00023899,2]
[321693481,1712394647786,-500.0,0.00023899,2]
[321693482,1712394647796,-500.0,0.00023899,2]
[321693483,1712394647806,-500.0,0.00023899,2]
[321693484,1712394647816,-500.0,0.00023899,2]
[321693485,1712394647826,-500.0,0.00023899,2]
[321693486,1712394647836,-500.0,0.00023899,2]
[321693487,1712394647846,-500.0,0.00023899,2]
[321693488,1712394647856,-500.0,0.00023899,2]
[321693489,1712394647866,-500.0,0.00023899,2]
[321693490,1712394647876,-500.0,0.00023899,2]
[321693491,1712394647885,-500.0,0.00023899,2]
[321693492,1712394647896,-500.0,0.00023899,2]
[321693493,1712394647906,-500.0,0.00023899,2]
[321693494,1712394647914,-500.0,0.00023899,2]
[321693495,1712394647924,-536.65825763,0.00023899,2]
[321693496,1712394647935,-1050.71,0.00023899,2]
[321693497,1712394647945,-1050.71,0.00023899,2]
[321693498,1712394647954,-1050.71,0.00023899,2]
[321693499,1712394647966,-1050.71,0.00023899,2]
[321693500,1712394647975,-1050.71,0.00023899,2]
[321693501,1712394647986,-1050.71,0.00023899,2]
[321693502,1712394647995,-1050.71,0.00023899,2]
[321693503,1712394648007,-1050.71,0.00023899,2]
[321693504,1712394648016,-1050.71,0.00023899,2]
[321693505,1712394648025,-500.0,0.00023899,2]
[321693506,1712394648035,-547.00321148,0.00023899,2]
[321693507,1712394648046,-2210.65689586,0.00023899,2]
[321693508,1712394648057,-942.0,0.000239,2]
[321693509,1712394648066,-35078.31285978,0.000239,2]
[321693510,1712394648096,-10709.67211139,0.000239,2]
[321693511,1712394648107,-314.54125224,0.000239,2]
[321693512,1712394648368,-1498.7024326,0.000239,2]
[321693513,1712394648380,-3570.86245152,0.000239,2]
[321693514,1712394648393,-6074.68475648,0.000239,2]
[321693515,1712394648406,-33166.0,0.000239,2]
[321693523,1712394904013,10000.00000003,0.000272,30]
[321693525,1712395163144,-500.0,0.00020448,2]
[321693526,1712395163171,-210.0107731,0.00020449,2]
[321693527,1712395163198,-289.9892269,0.00020454,2]
[321693537,1712395713560,150.0,0.00017911,2]
[321693538,1712395713583,50.30702609,0.00017911,2]
[321693545,1712395765421,32703.39037271,0.00022,4]
[321693546,1712395765445,50000.0,0.00022,4]
[321693547,1712395765470,14162.81025527,0.00022,4]
[321693548,1712395765495,25000.0,0.00022,4]
[321693569,1712395831868,-522.09,0.00020209,2]
[321693570,1712395831877,-138.83885,0.00022,2]
[321693571,1712395831923,-501.50781034,0.00022,2]
[321693572,1712395831934,-166.23271065,0.00022013,2]
[321693573,1712395831943,-252.56373487,0.00022037,2]
[321693574,1712395831955,-1374.8225,0.00022037,2]
[321693575,1712395831966,-9589.0872002,0.00022037,2]
[321693576,1712395831978,-1372.5,0.00022037,2]
[321693577,1712395832035,-1273.34585803,0.00022037,2]
[321693578,1712395832047,-1167.58965611,0.00022037,2]
[321693579,1712395832148,-2991.09352349,0.00022037,2]
[321693580,1712395832159,-499.01612085,0.00022037,2]
[321693581,1712395832171,-5379.98140645,0.00022037,2]
[321693582,1712395832180,-697.6,0.00022037,2]
[321693583,1712395832189,-244.48,0.00022096,2]
[321693584,1712395832198,-753.24,0.00022113,2]
[321693585,1712395832207,-97.79035655,0.00022233,2]
[321693586,1712395832218,-102.20964345,0.00022233,2]
[321693587,1712395832227,-185.75235657,0.00022274,2]
[321693588,1712395832239,-314.24764343,0.00022274,2]
[321693589,1712395832248,-37.60515757,0.00022276,2]
[321693590,1712395832260,-126.14484243,0.00022276,2]
[321693592,1712395832270,-281.53,0.00022276,2]
[321693594,1712395832279,-500.14922236,0.00022302,2]
[321693596,1712395832288,-302.4,0.00022307,2]
[321693598,1712395832298,-522.09,0.00022473,2]
[321693600,1712395832307,-169.29,0.00022524,2]
[321693602,1712395832317,-169.29,0.00022586,2]
[321693604,1712395832326,-169.29,0.00022647,2]
[321693635,1712395832335,-169.29,0.00022709,2]
[321693638,1712395832530,-169.29,0.00022771,2]
[321693640,1712395832539,-2481.06,0.00022773,2]
[321693642,1712395832548,-169.29,0.00022833,2]
[321693644,1712395832557,-169.29,0.00022894,2]
[321693646,1712395832566,-165.29,0.00022944,2]
[321693648,1712395832575,-169.29,0.00022956,2]
[321693650,1712395832583,-169.29,0.00023018,2]
[321693652,1712395832592,-169.29,0.0002308,2]
[321693653,1712395832601,-169.29,0.00023142,2]
[321693656,1712395832611,-1000.0,0.00023147,2]
[321693657,1712395832620,-8763.6998174,0.00023149,2]
[321693659,1712395832629,-169.29,0.00023203,2]
[321693661,1712395832638,-169.29,0.00023265,2]
[321693663,1712395832647,-1500.0,0.00023286,2]
[321693665,1712395832656,-3643.41218868,0.00023289,2]
[321693667,1712395832666,-169.29,0.00023327,2]
[321693669,1712395832675,-1465.80421839,0.00023356,2]
[321693671,1712395832684,-559.31000496,0.00023374,2]
[321693673,1712395832693,-246.3713346,0.00023376,2]
[321693675,1712395832702,-500.0,0.00023376,2]
[321693677,1712395832712,-1000.0,0.00023378,2]
[321693680,1712395832722,-100000.0,0.00023378,2]
[321693681,1712395832731,-3043.0224,0.00023378,2]
[321693682,1712395832740,-169.29,0.00023389,2]
[321693683,1712395832749,-169.29,0.0002345,2]
[321693684,1712395832760,-3643.41218859,0.00023468,2]
[321693685,1712395832769,-280.065,0.00023474,2]
[321693687,1712395832779,-1751.22905454,0.00023474,2]
[321693688,1712395832788,-155.6195763,0.00023475,2]
[321693689,1712395832797,-23807.21157352,0.00023475,2]
[321693690,1712395832807,-624.05493274,0.00023476,2]
[321693691,1712395832816,-25934.76525988,0.00023476,2]
[321693694,1712395837918,-29850.56533141,0.00023476,2]
[321693695,1712395837927,-500.0,0.00023477,2]
[321693696,1712395837937,-169.29,0.00023512,2]
[321693697,1712395837947,-559.31000492,0.00023544,2]
[321693698,1712395837956,-500.0,0.00023544,2]
[321693699,1712395837966,-500.0,0.00023544,2]
[321693700,1712395837976,-639.28,0.00023544,2]
[321693701,1712395837986,-500.0,0.00023544,2]
[321693702,1712395837995,-500.0,0.00023544,2]
[321693703,1712395838004,-500.0,0.00023544,2]
[321693704,1712395838014,-169.29,0.00023574,2]
[321693705,1712395838024,-500.0,0.00023575,2]
[321693706,1712395838034,-500.0,0.00023575,2]
[321693707,1712395838043,-500.0,0.00023575,2]
[321693708,1712395838053,-500.0,0.00023575,2]
[321693709,1712395838062,-500.0,0.00023575,2]
[321693710,1712395838072,-249.5119483,0.00023575,2]
[321693711,1712395838081,-500.0,0.00023575,2]
[321693712,1712395838090,-500.0,0.00023575,2]
[321693713,1712395838099,-569.14,0.00023575,2]
[321693714,1712395838108,-468.30721403,0.00023576,2]
[321693715,1712395838117,-500.0,0.00023576,2]
[321693716,1712395838127,-500.0,0.00023576,2]
[321693717,1712395838136,-500.0,0.00023576,2]
[321693718,1712395838145,-291.1,0.00023595,2]
[321693719,1712395838154,-1500.0,0.0002363,2]
[321693720,1712395838163,-169.29,0.00023636,2]
[321693721,1712395838172,-905.64,0.00023644,2]
[321693722,1712395838182,-905.64,0.00023644,2]
[321693723,1712395838192,-1632.6,0.00023644,2]
[321693724,1712395838201,-3643.41218859,0.00023647,2]
[321693725,1712395838211,-722.55328,0.0002366,2]
[321693726,1712395838221,-164.85658769,0.00023661,2]
[321693727,1712395838230,-500.0,0.00023669,2]
[321693728,1712395838240,-500.0,0.00023669,2]
[321693729,1712395838250,-500.0,0.00023669,2]
[321693730,1712395838259,-301.44,0.00023669,2]
[321693732,1712395838271,-1465.80421839,0.00023694,2]
[321693734,1712395838280,-169.29,0.00023698,2]
[321693736,1712395838290,-554.83,0.00023698,2]
[321693738,1712395838299,-293.31843453,0.000237,2]
[321693740,1712395838308,-200.0,0.00023708,2]
[321693741,1712395838318,-360.16101343,0.00023708,2]
[321693748,1712395838406,-336.22241732,0.00023708,2]
[321693749,1712395838458,-103.61656925,0.00023708,2]
[321693750,1712395838469,-500.0,0.00023708,2]
[321693751,1712395838479,-58.72365494,0.00023708,2]
[321693754,1712395840176,-441.27634506,0.00023708,2]
[321693755,1712395840186,-200.0,0.00023709,2]
[321693756,1712395840195,-800.0,0.00023709,2]
[321693757,1712395840205,-800.0,0.00023709,2]
[321693758,1712395840214,-202.875278,0.00023709,2]
[321693759,1712395840225,-500.0,0.00023709,2]
[321693760,1712395840245,-500.0,0.00023709,2]
[321693761,1712395840255,-200.0,0.00023709,2]
[321693762,1712395840268,-559.31000492,0.00023713,2]
[321693763,1712395840277,-151.4,0.00023781,2]
[321693764,1712395840286,-430.43,0.00023781,2]
[321693765,1712395840295,-348.62,0.00023781,2]
[321693766,1712395840304,-37.88697852,0.00023781,2]
[321693782,1712395842882,-262.11302148,0.00023781,2]
[321693783,1712395842893,-179.34,0.00023781,2]
[321693784,1712395842904,-315.7,0.00023781,2]
[321693785,1712395842915,-177.61,0.00023781,2]
[321693786,1712395842925,-267.62676229,0.00023781,2]
[321693787,1712395843205,-149.74323771,0.00023781,2]